bitfinex/quotes_BTCUSD_20240611
["timestamp","ask_amount","ask_price","bid_price","bid_amount"]
[1718093297754,0.02,67504.0,67500.0,0.00086]
[1718093297971,0.07908844,67507.0,67500.0,0.00086]
[1718093297972,0.02,67501.0,67500.0,0.00086]
[1718093298196,0.16431993,67501.0,67500.0,0.00086]
[1718093298443,0.17124841,67501.0,67500.0,0.00086]
[1718093298648,0.15124841,67501.0,67500.0,0.00086]
[1718093300701,0.16524841,67501.0,67500.0,0.00086]
[1718093302862,0.18524841,67501.0,67500.0,0.00086]
[1718093303044,0.16524841,67501.0,67500.0,0.00086]
[1718093304872,0.1650701,67501.0,67500.0,0.00086]
[1718093307241,0.1850701,67501.0,67500.0,0.00086]
[1718093307450,0.04092848,67501.0,67500.0,0.00086]
[1718093307780,0.02092848,67501.0,67500.0,0.00086]
[1718093313868,0.10692848,67501.0,67500.0,0.00086]
[1718093322911,0.02092848,67501.0,67500.0,0.00086]
[1718093323123,0.10692848,67501.0,67500.0,0.00086]
[1718093325352,0.10692848,67501.0,67500.0,0.16256]
[1718093325970,0.02092848,67501.0,67500.0,0.16256]
[1718093326205,0.02092848,67501.0,67500.0,0.387608]
[1718093326653,0.014,67501.0,67500.0,0.387608]
[1718093326857,0.02089233,67501.0,67500.0,0.387608]
[1718093327305,0.10689233,67501.0,67500.0,0.387608]
[1718093328153,0.1,67501.0,67500.0,0.387608]
[1718093328564,0.1,67501.0,67500.0,0.23946]
[1718093329002,0.1,67501.0,67500.0,0.00086]
[1718093332132,0.014,67501.0,67500.0,0.00086]
[1718093332336,0.014,67501.0,67500.0,0.23746]
[1718093337359,0.014,67501.0,67500.0,0.33790157]
[1718093337767,0.014946,67501.0,67500.0,0.23746]
[1718093339256,0.014946,67501.0,67500.0,0.3369389]
[1718093340288,0.014946,67501.0,67500.0,0.4850869]
[1718093343743,0.014946,67501.0,67500.0,0.3369389]
[1718093343962,0.014946,67501.0,67500.0,0.1003389]
[1718093344449,0.165646,67501.0,67500.0,0.00086]
[1718093348362,0.174846,67501.0,67500.0,0.00086]
[1718093350994,0.56901093,67501.0,67500.0,0.00086]
[1718093351448,1.02787383,67501.0,67500.0,0.00086]
[1718093352354,0.69962436,67501.0,67500.0,0.00086]
[1718093352803,0.68562436,67501.0,67500.0,0.00086]
[1718093353256,0.56901093,67501.0,67500.0,0.00086]
[1718093353469,0.62094555,67501.0,67500.0,0.00086]
[1718093353680,0.63494555,67501.0,67500.0,0.00086]
[1718093354091,0.64094555,67501.0,67500.0,0.00186]
[1718093354441,0.63494555,67501.0,67500.0,0.00086]
[1718093354846,0.64894555,67501.0,67500.0,0.00086]
[1718093355044,0.73494555,67501.0,67500.0,0.00086]
[1718093355473,0.72094555,67501.0,67500.0,0.00086]
[1718093356052,0.70694555,67501.0,67500.0,0.00086]
[1718093356267,0.65501093,67501.0,67500.0,0.00086]
[1718093356880,0.66901093,67501.0,67500.0,0.00086]
[1718093357877,0.58301093,67501.0,67500.0,0.00086]
[1718093358080,0.64901093,67501.0,67500.0,0.00086]
[1718093358902,0.40741093,67501.0,67500.0,0.00086]
[1718093359107,0.42741093,67501.0,67500.0,0.00086]
[1718093359353,0.40741093,67501.0,67500.0,0.00086]
[1718093359919,0.42741093,67501.0,67500.0,0.00086]
[1718093360538,0.34141093,67501.0,67500.0,0.00086]
[1718093360744,0.42741093,67501.0,67500.0,0.00086]
[1718093360947,0.40741093,67501.0,67500.0,0.00086]
[1718093361156,0.32141093,67501.0,67500.0,0.00086]
[1718093361357,0.40741093,67501.0,67500.0,0.00086]
[1718093361777,0.40741093,67501.0,67500.0,0.15516]
[1718093362012,0.114946,67501.0,67500.0,0.15516]
[1718093362425,0.114946,67501.0,67500.0,0.00086]
[1718093362426,0.134946,67501.0,67500.0,0.00086]
[1718093362633,0.358591,67501.0,67500.0,0.00086]
[1718093363036,0.35839052,67501.0,67500.0,0.00086]
[1718093363242,0.50271045,67501.0,67500.0,0.00086]
[1718093363448,0.66061045,67501.0,67500.0,0.00086]
[1718093375517,0.50491045,67501.0,67500.0,0.00086]
[1718093375721,0.59091045,67501.0,67500.0,0.00086]
[1718093376452,0.32121045,67501.0,67500.0,0.00086]
[1718093376671,0.40721045,67501.0,67500.0,0.00086]
[1718093378689,0.02874552,67501.0,67500.0,0.00086]
[1718093378918,0.02874552,67501.0,67500.0,0.23616]
[1718093380164,0.01474552,67501.0,67500.0,0.23616]
[1718093380559,0.00074552,67501.0,67500.0,0.23616]
[1718093380755,0.02174552,67501.0,67500.0,0.23716]
[1718093381394,0.01474552,67501.0,67500.0,0.23616]
[1718093381568,0.01474552,67501.0,67500.0,0.23716]
[1718093381780,0.02174552,67501.0,67500.0,0.23716]
[1718093382197,0.01474552,67501.0,67500.0,0.23616]
[1718093382398,0.00074552,67501.0,67500.0,0.23616]
[1718093383246,0.01474552,67501.0,67500.0,0.23616]
[1718093403124,0.01474552,67501.0,67500.0,0.00086]
[1718093403328,0.10074552,67501.0,67500.0,0.00086]
[1718093410790,0.18104552,67501.0,67500.0,0.00086]
[1718093413108,0.10074552,67501.0,67500.0,0.00086]
[1718093414247,0.01474552,67501.0,67500.0,0.00086]
[1718093414461,0.10074552,67501.0,67500.0,0.00086]
[1718093415364,0.2552346,67501.0,67500.0,0.00086]
[1718093415597,0.69436545,67501.0,67500.0,0.00086]
[1718093415825,0.76652541,67501.0,67500.0,0.00086]
[1718093416033,1.35703972,67501.0,67500.0,0.00086]
[1718093416717,1.34303972,67501.0,67500.0,0.00086]
[1718093417138,1.15703972,67501.0,67500.0,0.00086]
[1718093417350,1.10227562,67501.0,67500.0,0.00086]
[1718093417597,0.02,67482.0,67480.0,0.04923693]
[1718093417818,0.40211993,67481.0,67480.0,0.04923693]
[1718093418031,0.40211993,67481.0,67475.0,0.01782026]
[1718093418032,0.02,67477.0,67475.0,0.01782026]
[1718093418269,0.02,67475.0,67463.0,0.148227]
[1718093418517,0.53557596,67481.0,67469.0,0.01830864]
[1718093418518,0.106,67470.0,67469.0,0.01830864]
[1718093418732,0.3503,67470.0,67469.0,0.00086]
[1718093420232,0.3643,67470.0,67469.0,0.00086]
[1718093421084,0.4935,67470.0,67469.0,0.00086]
[1718093424150,0.2583,67470.0,67469.0,0.00086]
[1718093424366,0.2292,67470.0,67469.0,0.00086]
[1718093424813,0.2152,67470.0,67469.0,0.00086]
[1718093425247,0.2322,67470.0,67469.0,0.00086]
[1718093425458,0.2182,67470.0,67469.0,0.00086]
[1718093425664,0.2152,67470.0,67469.0,0.00086]
[1718093426096,0.2152,67470.0,67469.0,0.00186]
[1718093426364,0.2212,67470.0,67469.0,0.00186]
[1718093426604,0.2352,67470.0,67469.0,0.00186]
[1718093426847,0.2292,67470.0,67469.0,0.00086]
[1718093427062,0.2152,67470.0,67469.0,0.00086]
[1718093428209,0.2352,67470.0,67469.0,0.00086]
[1718093428443,0.61681993,67470.0,67469.0,0.00186]
[1718093428671,0.63081993,67470.0,67469.0,0.00186]
[1718093428886,0.60781993,67470.0,67469.0,0.00086]
[1718093429305,0.62781993,67470.0,67469.0,0.00186]
[1718093429740,0.60781993,67470.0,67469.0,0.00086]
[1718093429976,0.82181993,67470.0,67469.0,0.00086]
[1718093430189,0.83081993,67470.0,67469.0,0.00186]
[1718093430403,0.76503393,67470.0,67469.0,0.00186]
[1718093431035,0.96503393,67470.0,67469.0,0.00186]
[1718093431269,1.02514837,67470.0,67469.0,0.00186]
[1718093431486,0.96605456,67470.0,67469.0,0.00086]
[1718093431695,0.98005456,67470.0,67469.0,0.00086]
[1718093431918,1.08805456,67470.0,67469.0,0.00186]
[1718093432140,1.07405456,67470.0,67469.0,0.00186]
[1718093432354,1.10244048,67470.0,67469.0,0.00086]
[1718093432619,1.08005456,67470.0,67469.0,0.00086]
[1718093432840,1.07505456,67470.0,67469.0,0.00186]
[1718093433056,1.08905456,67470.0,67469.0,0.00186]
[1718093433280,1.08005456,67470.0,67469.0,0.00086]
[1718093433769,0.88005456,67470.0,67469.0,0.00086]
[1718093435179,1.08005456,67470.0,67469.0,0.00086]
[1718093435404,0.89405456,67470.0,67469.0,0.00086]
[1718093437088,0.91215552,67470.0,67469.0,0.00086]
[1718093441205,0.89215552,67470.0,67469.0,0.00086]
[1718093441425,0.54575456,67470.0,67469.0,0.00086]
[1718093442464,0.53175456,67470.0,67469.0,0.00086]
[1718093442550,0.51775456,67470.0,67469.0,0.00086]
[1718093442806,0.52875456,67470.0,67469.0,0.00086]
[1718093443275,0.53175456,67470.0,67469.0,0.00086]
[1718093443711,0.54275456,67470.0,67469.0,0.00086]
[1718093443935,0.23622063,67470.0,67469.0,0.23126]
[1718093444424,0.02102063,67470.0,67469.0,0.23126]
[1718093444650,0.03502063,67470.0,67469.0,0.23126]
[1718093445102,0.02402063,67470.0,67469.0,0.23126]
[1718093445543,0.02602063,67470.0,67469.0,0.23126]
[1718093445963,0.01002063,67470.0,67469.0,0.23126]
[1718093446410,0.2152,67475.0,67469.0,0.23126]
[1718093446621,0.00799258,67470.0,67469.0,0.23126]
[1718093446829,0.2152,67475.0,67469.0,0.23126]
[1718093447044,0.02199258,67470.0,67469.0,0.23126]
[1718093447253,0.2152,67475.0,67469.0,0.23126]
[1718093447482,0.00799258,67470.0,67469.0,0.23126]
[1718093447924,0.2152,67475.0,67469.0,0.23126]
[1718093448142,0.00799258,67470.0,67469.0,0.23126]
[1718093448362,0.619989,67482.0,67469.0,0.23126]
[1718093448580,0.35951993,67481.0,67471.0,0.1601]
[1718093448812,0.35951993,67481.0,67472.0,0.0828]
[1718093449233,0.51196075,67481.0,67472.0,0.0828]
[1718093449777,0.66015075,67481.0,67472.0,0.0828]
[1718093450412,0.67415075,67481.0,67472.0,0.0828]
[1718093451440,0.52470993,67481.0,67472.0,0.0828]
[1718093452373,0.07215996,67480.0,67472.0,0.0828]
[1718093452705,0.02,67470.0,67469.0,0.00086]
[1718093452818,0.16431993,67470.0,67469.0,0.00086]
[1718093453029,0.17235994,67470.0,67469.0,0.00086]
[1718093453699,0.25845994,67470.0,67469.0,0.00086]
[1718093454167,0.27245994,67470.0,67469.0,0.00086]
[1718093454745,0.42482415,67470.0,67469.0,0.00086]
[1718093454892,0.55402415,67470.0,67469.0,0.00086]
[1718093455291,0.40165994,67470.0,67469.0,0.00086]
[1718093457047,0.5540528,67470.0,67469.0,0.00086]
[1718093457253,0.40165994,67470.0,67469.0,0.00086]
[1718093458142,0.54987394,67470.0,67469.0,0.00086]
[1718093458511,0.71647394,67470.0,67469.0,0.00086]
[1718093459402,0.70247394,67470.0,67469.0,0.00086]
[1718093459701,0.72447394,67470.0,67469.0,0.00086]
[1718093463977,0.81163733,67470.0,67469.0,0.00086]
[1718093464137,0.72447394,67470.0,67469.0,0.00086]
[1718093465834,0.70447394,67470.0,67469.0,0.00086]
[1718093466674,0.72447394,67470.0,67469.0,0.00086]
[1718093466875,0.48917394,67470.0,67469.0,0.00086]
[1718093467080,0.70447394,67470.0,67469.0,0.00086]
[1718093467297,0.87666452,67470.0,67469.0,0.00086]
[1718093468319,0.93115174,67470.0,67469.0,0.00086]
[1718093469379,0.87666452,67470.0,67469.0,0.00086]
[1718093471800,1.14258272,67470.0,67469.0,0.00086]
[1718093472020,1.21828272,67470.0,67469.0,0.00086]
[1718093472232,1.59063114,67470.0,67469.0,0.00086]
[1718093472442,1.79063114,67470.0,67469.0,0.00086]
[1718093472658,1.79063114,67470.0,67459.0,0.00856]
[1718093472659,0.405331,67462.0,67459.0,0.00856]
[1718093472869,1.71355448,67462.0,67459.0,0.00856]
[1718093473080,1.62566968,67462.0,67459.0,0.00856]
[1718093473299,0.705335,67460.0,67459.0,0.00856]
[1718093473513,0.406649,67454.0,67453.0,0.00856]
[1718093473732,0.96238867,67454.0,67453.0,0.00856]
[1718093473981,1.11845951,67454.0,67453.0,0.00856]
[1718093474155,1.12638515,67454.0,67453.0,0.00856]
[1718093474367,1.45488217,67454.0,67453.0,0.00856]
[1718093474586,1.03958217,67454.0,67453.0,0.00856]
[1718093474823,1.34270585,67454.0,67453.0,0.00856]
[1718093475050,0.99222907,67454.0,67453.0,0.00856]
[1718093475266,0.168266,67446.0,67444.0,0.54936581]
[1718093475470,0.50788593,67446.0,67444.0,0.54936581]
[1718093475680,0.51581157,67446.0,67444.0,0.5]
[1718093476520,0.54381157,67446.0,67444.0,0.5]
[1718093476733,0.55781157,67446.0,67444.0,0.5]
[1718093476931,0.71191157,67446.0,67444.0,0.5]
[1718093478437,0.368268,67445.0,67444.0,0.5]
[1718093478644,0.368268,67445.0,67435.0,0.00532806]
[1718093478645,0.602888,67436.0,67435.0,0.00532806]
[1718093478862,0.168295,67433.0,67432.0,0.05817828]
[1718093479101,0.168295,67433.0,67410.0,0.01790993]
[1718093479102,0.02,67422.0,67410.0,0.01790993]
[1718093479352,0.2,67430.0,67395.0,0.0891762]
[1718093479353,0.148353,67407.0,67405.0,0.059324]
[1718093479557,0.14431993,67406.0,67398.0,0.2344]
[1718093479778,0.00768504,67406.0,67403.0,0.0758]
[1718093480205,0.0862,67410.0,67403.0,0.0758]
[1718093480431,0.04320127,67420.0,67403.0,0.0758]
[1718093480432,0.02320127,67420.0,67403.0,0.0958]
[1718093480666,0.005,67407.0,67406.0,0.02]
[1718093480871,0.14431993,67419.0,67409.0,0.02]
[1718093481090,0.14431993,67419.0,67410.0,0.0798]
[1718093481727,0.14431993,67419.0,67410.0,0.0998]
[1718093481984,0.14431993,67419.0,67410.0,0.0798]
[1718093482565,0.2155,67418.0,67410.0,0.0798]
[1718093482781,0.14431993,67417.0,67410.0,0.0798]
[1718093483213,0.152606,67416.0,67405.0,0.04972235]
[1718093483420,0.09215996,67412.0,67405.0,0.04972235]
[1718093483629,0.14431993,67411.0,67401.0,0.00857]
[1718093484057,0.00735515,67410.0,67401.0,0.00857]
[1718093484277,0.14431993,67409.0,67401.0,0.00857]
[1718093484890,0.00735515,67408.0,67401.0,0.00857]
[1718093485041,0.14431993,67407.0,67401.0,0.00857]
[1718093485464,0.00729255,67406.0,67401.0,0.00857]
[1718093485657,0.14431993,67405.0,67399.0,0.09820135]
[1718093486075,0.00729255,67404.0,67399.0,0.09820135]
[1718093486377,0.15161248,67404.0,67399.0,0.09820135]
[1718093488887,0.15161248,67404.0,67400.0,0.0795]
[1718093489168,0.02129255,67404.0,67400.0,0.0795]
[1718093489641,0.014,67404.0,67400.0,0.0795]
[1718093490102,0.2155,67413.0,67400.0,0.0795]
[1718093490326,0.242,67418.0,67400.0,0.0795]
[1718093490327,0.14431993,67412.0,67400.0,0.0795]
[1718093490544,0.014,67404.0,67400.0,0.0995]
[1718093490763,0.15161331,67412.0,67400.0,0.0795]
[1718093490992,0.14431993,67412.0,67400.0,0.0795]
[1718093491233,0.00729338,67411.0,67400.0,0.0795]
[1718093491477,0.00729338,67411.0,67403.0,0.1535]
[1718093491697,0.00729338,67411.0,67406.0,0.0758]
[1718093491926,0.02320127,67420.0,67406.0,0.0758]
[1718093492195,0.14431993,67419.0,67406.0,0.0958]
[1718093492410,0.2155,67410.0,67400.0,0.0758]
[1718093492630,0.004272,67409.0,67406.0,0.04994587]
[1718093492842,0.2155,67408.0,67406.0,0.04994587]
[1718093493093,0.22273182,67408.0,67397.0,0.1611]
[1718093493588,0.00723182,67408.0,67398.0,0.09215996]
[1718093493802,0.00723182,67408.0,67399.0,0.2342]
[1718093494037,0.0814,67419.0,67399.0,0.2342]
[1718093494255,0.014,67408.0,67399.0,0.2342]
[1718093494469,0.014,67408.0,67405.0,0.0823]
[1718093495920,0.023,67408.0,67405.0,0.0823]
[1718093496142,0.009,67408.0,67405.0,0.0823]
[1718093496555,0.016,67408.0,67405.0,0.0823]
[1718093496726,0.009,67408.0,67405.0,0.0823]
[1718093497192,0.023,67408.0,67404.0,0.2373]
[1718093498236,0.00722489,67407.0,67404.0,0.2373]
[1718093499516,0.008,67407.0,67404.0,0.2373]
[1718093500388,0.022,67407.0,67404.0,0.2373]
[1718093501066,0.022,67407.0,67403.0,0.00086]
[1718093502569,0.008,67407.0,67403.0,0.00086]
[1718093502741,0.02,67412.0,67403.0,0.00086]
[1718093502960,0.14431993,67411.0,67403.0,0.00086]
[1718093503229,0.007,67407.0,67403.0,0.00086]
[1718093503650,0.00716103,67406.0,67403.0,0.00086]
[1718093505353,0.37981993,67411.0,67403.0,0.00086]
[1718093505563,0.00716103,67405.0,67403.0,0.00086]
[1718093506632,0.014,67407.0,67403.0,0.00086]
[1718093506857,0.00712715,67404.0,67403.0,0.00086]
[1718093507082,0.35981993,67411.0,67403.0,0.00086]
[1718093507254,0.014,67405.0,67403.0,0.00086]
[1718093507497,0.00712715,67410.0,67403.0,0.00086]
[1718093507704,0.151459,67404.0,67403.0,0.00086]
[1718093507905,0.14431993,67404.0,67403.0,0.00086]
[1718093508117,0.228859,67404.0,67403.0,0.00086]
[1718093508541,0.248859,67404.0,67403.0,0.00086]
[1718093508787,0.151459,67404.0,67403.0,0.00086]
[1718093508994,0.00713907,67404.0,67403.0,0.24286]
[1718093509212,0.1522,67414.0,67403.0,0.24286]
[1718093509428,0.14431993,67411.0,67403.0,0.24286]
[1718093509655,0.009,67404.0,67403.0,0.24286]
[1718093510822,0.023,67404.0,67403.0,0.24286]
[1718093511017,0.014,67404.0,67403.0,0.24286]
[1718093511222,0.14431993,67411.0,67403.0,0.24286]
[1718093511654,0.014,67404.0,67403.0,0.24286]
[1718093511857,0.00711911,67410.0,67403.0,0.24286]
[1718093512076,0.14431993,67411.0,67403.0,0.24286]
[1718093512356,0.014,67404.0,67403.0,0.24286]
[1718093513530,0.14431993,67411.0,67403.0,0.24286]
[1718093513927,0.014,67404.0,67403.0,0.24286]
[1718093514861,0.14431993,67411.0,67403.0,0.24286]
[1718093515291,0.00708974,67410.0,67403.0,0.24286]
[1718093516768,0.00708974,67410.0,67403.0,0.00086]
[1718093517492,0.014,67404.0,67403.0,0.00086]
[1718093517544,0.00708974,67410.0,67403.0,0.00086]
[1718093517799,0.148351,67408.0,67403.0,0.00086]
[1718093518062,0.29267093,67408.0,67403.0,0.00086]
[1718093518602,0.00710478,67407.0,67403.0,0.00086]
[1718093518865,0.226955,67406.0,67403.0,0.00086]
[1718093519160,0.14414136,67405.0,67403.0,0.00086]
[1718093519638,0.1512239,67405.0,67403.0,0.00086]
[1718093521374,0.148359,67404.0,67403.0,0.00086]
[1718093521587,0.14431993,67404.0,67403.0,0.00086]
[1718093521806,0.15139921,67404.0,67403.0,0.00086]
[1718093522293,0.00707928,67404.0,67403.0,0.16626]
[1718093522503,0.00707928,67404.0,67403.0,0.24916]
[1718093522747,0.019,67405.0,67403.0,0.24916]
[1718093523257,0.014,67405.0,67403.0,0.24916]
[1718093523533,0.014,67405.0,67403.0,0.26916]
[1718093523780,0.014,67405.0,67403.0,0.24916]
[1718093524037,0.148328,67418.0,67404.0,0.1537]
[1718093524285,0.14431993,67417.0,67405.0,0.02]
[1718093524543,0.14431993,67417.0,67406.0,0.0757]
[1718093525665,0.15831993,67417.0,67406.0,0.0757]
[1718093525884,0.06673701,67427.0,67418.0,0.223728]
[1718093526099,0.06673701,67427.0,67419.0,0.1556]
[1718093526100,0.02320233,67427.0,67419.0,0.1556]
[1718093526316,0.08706937,67434.0,67419.0,0.1556]
[1718093526317,0.04353468,67437.0,67420.0,0.225223]
[1718093526531,0.06353468,67437.0,67420.0,0.225223]
[1718093526743,0.45,67436.0,67420.0,0.225223]
[1718093526962,0.59431993,67436.0,67420.0,0.225223]
[1718093527179,0.2155,67430.0,67420.0,0.1251231]
[1718093527411,0.14431993,67429.0,67420.0,0.1251231]
[1718093528502,0.008,67427.0,67420.0,0.1251231]
[1718093528929,0.14431993,67429.0,67420.0,0.1251231]
[1718093528930,0.15831993,67429.0,67420.0,0.1251231]
[1718093529145,0.14431993,67429.0,67420.0,0.1251231]
[1718093529372,0.14431993,67429.0,67420.0,0.1261231]
[1718093530261,0.14431993,67429.0,67420.0,0.0500231]
[1718093530500,0.2155,67425.0,67420.0,0.0500231]
[1718093530718,0.14431993,67424.0,67420.0,0.0500231]
[1718093530924,0.14431993,67424.0,67420.0,0.001]
[1718093531564,0.29891993,67424.0,67415.0,0.1]
[1718093531781,0.37651993,67424.0,67415.0,0.1]
[1718093531989,0.39051993,67424.0,67420.0,0.001]
[1718093532195,0.37651993,67424.0,67420.0,0.001]
[1718093532408,0.37651993,67424.0,67415.0,0.1]
[1718093532618,0.39051993,67424.0,67415.0,0.1]
[1718093532824,0.39551993,67424.0,67415.0,0.1]
[1718093533916,0.38151993,67424.0,67415.0,0.1]
[1718093534341,0.39051993,67424.0,67415.0,0.1]
[1718093534564,0.37651993,67424.0,67415.0,0.001]
[1718093534995,0.39051993,67424.0,67415.0,0.001]
[1718093535669,0.31291993,67424.0,67415.0,0.001]
[1718093537179,0.33291993,67424.0,67415.0,0.001]
[1718093537397,0.31291993,67424.0,67415.0,0.001]
[1718093537610,0.02,67423.0,67415.0,0.001]
[1718093537845,0.14431993,67422.0,67415.0,0.001]
[1718093538490,0.14431993,67422.0,67414.0,0.148337]
[1718093538931,0.14431993,67422.0,67415.0,0.001]
[1718093539145,0.15831993,67422.0,67415.0,0.001]
[1718093540452,0.07215996,67419.0,67415.0,0.001]
[1718093540655,0.29501993,67418.0,67415.0,0.001]
[1718093541272,0.29501993,67418.0,67405.0,0.00086]
[1718093541489,0.29501993,67418.0,67414.0,0.001]
[1718093541865,0.0805,67417.0,67414.0,0.001]
[1718093542114,0.0805,67417.0,67405.0,0.00086]
[1718093542115,0.14431993,67416.0,67405.0,0.00086]
[1718093542321,0.14431993,67416.0,67415.0,0.001]
[1718093542951,0.14431993,67416.0,67405.0,0.00086]
[1718093543137,0.14431993,67416.0,67414.0,0.001]
[1718093544640,0.14431993,67416.0,67405.0,0.00086]
[1718093544854,0.14431993,67416.0,67415.0,0.001]
[1718093545062,0.31265193,67416.0,67415.0,0.001]
[1718093545501,0.0815,67411.0,67405.0,0.00086]
[1718093545708,0.35981993,67410.0,67405.0,0.00086]
[1718093546139,0.164472,67409.0,67405.0,0.00086]
[1718093546291,0.14431993,67408.0,67405.0,0.00086]
[1718093547314,0.148354,67406.0,67405.0,0.00086]
[1718093547512,0.29267393,67406.0,67405.0,0.00086]
[1718093548560,0.55987393,67406.0,67405.0,0.00086]
[1718093549216,0.75987393,67406.0,67405.0,0.00086]
[1718093549432,0.57087393,67406.0,67405.0,0.00086]
[1718093549658,0.57687393,67406.0,67405.0,0.00086]
[1718093549866,0.76287393,67406.0,67405.0,0.00086]
[1718093550069,0.92119386,67406.0,67405.0,0.00086]
[1718093550273,1.31790286,67406.0,67405.0,0.00086]
[1718093551147,1.31190286,67406.0,67405.0,0.00086]
[1718093551473,1.32590286,67406.0,67405.0,0.00086]
[1718093551644,1.32590286,67406.0,67380.0,0.0134941]
[1718093551645,0.158409,67381.0,67380.0,0.0134941]
[1718093551905,0.168414,67379.0,67378.0,0.04922573]
[1718093552091,0.02,67378.0,67358.0,0.00080526]
[1718093552311,0.16859193,67378.0,67363.0,0.04936794]
[1718093552521,0.39879193,67378.0,67358.0,0.00080526]
[1718093552695,0.39879193,67378.0,67377.0,0.00357]
[1718093552696,0.62052052,67378.0,67377.0,0.00357]
[1718093552898,0.148438,67368.0,67358.0,0.00080526]
[1718093553136,0.02,67375.0,67358.0,0.00080526]
[1718093553137,0.14431993,67367.0,67358.0,0.00080526]
[1718093553581,0.4718,67375.0,67362.0,0.02]
[1718093553778,0.4718,67375.0,67365.0,0.02]
[1718093553779,0.14431993,67374.0,67365.0,0.02]
[1718093554023,0.14431993,67374.0,67361.0,0.02]
[1718093554250,0.14431993,67374.0,67362.0,0.1574]
[1718093555144,0.4718,67375.0,67366.0,0.02]
[1718093555362,0.4718,67375.0,67374.0,0.1562]
[1718093555631,0.4718,67383.0,67381.0,0.02]
[1718093555839,0.4718,67383.0,67382.0,0.02]
[1718093556051,0.4718,67383.0,67378.0,0.02]
[1718093556268,0.4718,67383.0,67379.0,0.148413]
[1718093557941,0.4718,67383.0,67382.0,0.001]
[1718093558362,0.4818,67383.0,67379.0,0.148413]
[1718093558574,0.4818,67383.0,67377.0,0.0765]
[1718093558801,0.61611993,67383.0,67379.0,0.001]
[1718093559017,0.2155,67380.0,67379.0,0.001]
[1718093559234,0.37981993,67380.0,67379.0,0.001]
[1718093559466,0.14431993,67380.0,67379.0,0.001]
[1718093559684,0.35981993,67380.0,67379.0,0.001]
[1718093560132,0.37981993,67380.0,67379.0,0.001]
[1718093560338,0.35981993,67380.0,67379.0,0.001]
[1718093560773,0.37981993,67380.0,67379.0,0.001]
[1718093560983,0.37981993,67380.0,67358.0,0.15132409]
[1718093560984,0.02,67373.0,67358.0,0.15132409]
[1718093561209,0.2155,67369.0,67358.0,0.15132409]
[1718093561459,0.2155,67363.0,67359.0,0.1]
[1718093561704,0.35981993,67363.0,67358.0,0.04950319]
[1718093561932,0.35981993,67363.0,67357.0,0.0753]
[1718093562143,0.35981993,67363.0,67354.0,0.0154517]
[1718093562587,0.14431993,67362.0,67358.0,0.001]
[1718093563022,0.14431993,67362.0,67349.0,0.04938244]
[1718093564123,0.14431993,67362.0,67349.0,0.14938244]
[1718093564535,0.14431993,67362.0,67349.0,0.16692799]
[1718093564750,0.2155,67351.0,67349.0,0.04938244]
[1718093564978,0.35981993,67351.0,67349.0,0.04938244]
[1718093565186,0.23266792,67351.0,67340.0,0.03018534]
[1718093565401,0.44816792,67351.0,67340.0,0.03018534]
[1718093565629,0.85264292,67351.0,67340.0,0.03018534]
[1718093565922,0.40031993,67351.0,67340.0,0.03018534]
[1718093566150,0.59581993,67351.0,67340.0,0.03018534]
[1718093566366,0.35981993,67351.0,67340.0,0.03018534]
[1718093566584,0.02,67351.0,67341.0,0.00148095]
[1718093566805,0.02,67351.0,67348.0,0.02]
[1718093567027,0.02,67351.0,67350.0,0.0205035]
[1718093567264,0.02,67351.0,67350.0,0.2320035]
[1718093567484,0.02,67351.0,67350.0,0.3320035]
[1718093567920,0.014,67351.0,67350.0,0.3320035]
[1718093568360,0.027,67351.0,67350.0,0.3320035]
[1718093568585,0.013,67351.0,67350.0,0.3320035]
[1718093568807,0.2155,67365.0,67350.0,0.3320035]
[1718093569017,0.2155,67365.0,67351.0,0.1]
[1718093569236,0.43295979,67370.0,67351.0,0.1]
[1718093569452,0.2155,67367.0,67351.0,0.1]
[1718093569690,0.2155,67367.0,67351.0,0.14917827]
[1718093571289,0.43295979,67379.0,67366.0,0.1]
[1718093571523,0.43295979,67379.0,67366.0,0.2155]
[1718093571751,0.43295979,67379.0,67367.0,0.04101195]
[1718093571752,0.2155,67374.0,67367.0,0.04101195]
[1718093571972,0.0762,67377.0,67350.0,0.0005035]
[1718093571973,0.014,67365.0,67350.0,0.0005035]
[1718093572221,0.2917,67351.0,67350.0,0.0005035]
[1718093572446,0.48637,67351.0,67350.0,0.0005035]
[1718093572667,0.73068993,67351.0,67342.0,0.04953407]
[1718093572885,0.02,67343.0,67342.0,0.04953407]
[1718093573126,0.004272,67346.0,67342.0,0.04953407]
[1718093573364,0.24431993,67350.0,67340.0,0.03018534]
[1718093573365,0.14431993,67350.0,67343.0,0.0821]
[1718093573594,0.014,67351.0,67344.0,0.0100735]
[1718093573806,0.014,67351.0,67344.0,0.11660229]
[1718093574038,0.43295979,67366.0,67344.0,0.10652879]
[1718093574257,0.2155,67361.0,67344.0,0.06269005]
[1718093574474,0.2155,67356.0,67343.0,0.0821]
[1718093574699,0.014,67365.0,67344.0,0.04996429]
[1718093574930,0.14431993,67364.0,67347.0,0.07215996]
[1718093575157,0.12,67382.0,67357.0,0.0821]
[1718093575371,0.43295979,67386.0,67357.0,0.0821]
[1718093575372,0.2155,67378.0,67357.0,0.08397141]
[1718093575591,0.2155,67378.0,67358.0,0.07257821]
[1718093575805,0.14431993,67377.0,67362.0,0.07215996]
[1718093576017,0.14431993,67376.0,67350.0,0.1814515]
[1718093576269,0.001,67364.0,67351.0,0.16731993]
[1718093576504,0.001,67364.0,67354.0,0.07215996]
[1718093576722,0.001,67364.0,67355.0,0.14431993]
[1718093576945,0.001,67364.0,67361.0,0.07215996]
[1718093577152,0.04960008,67377.0,67362.0,0.25008011]
[1718093577367,0.04960008,67377.0,67365.0,0.2]
[1718093577586,0.04960008,67377.0,67363.0,0.12409238]
[1718093577587,0.04960008,67377.0,67366.0,0.27792008]
[1718093578305,0.02,67398.0,67374.0,0.148425]